fUSD/lending_fUSD_20240826
["ID","MTS","AMOUNT","RATE_DAILY","PERIOD"]
[336010256,1724669314244,202.50746362,0.00010009,2]
[336010257,1724669322908,181.15819189,0.00010009,2]
[336010258,1724669330853,155.0,0.00010009,2]
[336010290,1724669431677,-169.74,0.00010037,2]
[336010292,1724669431686,-800.0,0.000103,3]
[336010294,1724669431695,-34319.13,0.00010398,6]
[336010296,1724669431705,-11282.69,0.00010398,6]
[336010298,1724669431715,-33669.5,0.00010398,6]
[336010300,1724669431724,-24666.13,0.00010398,6]
[336010302,1724669431733,-57215.79,0.00010398,6]
[336010304,1724669431743,-5685.59,0.00010398,6]
[336010306,1724669431752,-116401.84049741,0.00010399,6]
[336010310,1724669431783,-600.0,0.00010399,6]
[336010312,1724669431794,-1096.73776496,0.00010399,6]
[336010314,1724669431805,-1238.04,0.00010399,6]
[336010317,1724669431822,-105640.08034493,0.00010399,6]
[336010319,1724669431833,-746.56164777,0.00010399,6]
[336010322,1724669431844,-548.61637521,0.00010399,6]
[336010324,1724669431855,-984.09450233,0.00010399,6]
[336010326,1724669431867,-1610.09445505,0.00010399,6]
[336010329,1724669431888,-535.511,0.00010399,6]
[336010331,1724669431899,-3410.50407077,0.00010399,6]
[336010332,1724669431910,-278.34691418,0.00010399,6]
[336010333,1724669431921,-3408.55660197,0.00010399,6]
[336010334,1724669431959,-2599.99999999,0.00010399,6]
[336010335,1724669431973,-587.0,0.00010399,6]
[336010336,1724669431989,-147342.45763621,0.00010399,6]
[336010337,1724669432056,-64119.00000001,0.00010399,6]
[336010376,1724669438079,-351.02300115,0.00010399,6]
[336010377,1724669438091,-1352.67500002,0.00010399,6]
[336010378,1724669438137,-64042.99999996,0.00010399,6]
[336010379,1724669438151,-557424.55018808,0.00010399,6]
[336010380,1724669438161,-229087.39353175,0.00010399,6]
[336010381,1724669438172,-23722.35011438,0.00010399,6]
[336010382,1724669438184,-5979.78453988,0.00010399,6]
[336010383,1724669438195,-557.89365367,0.00010399,6]
[336010384,1724669438206,-25887.21816032,0.00010399,6]
[336010385,1724669438219,-7852.93572978,0.00010399,6]
[336010386,1724669438251,-835.60937056,0.00010399,6]
[336010387,1724669438262,-638.76806,0.00010399,6]
[336010389,1724669438287,-2440.67190885,0.00010399,6]
[336010521,1724669439894,-323.61493081,0.00010399,6]
[336010522,1724669439903,-1509.28058725,0.00010399,6]
[336010523,1724669439923,-276.81160608,0.00010399,6]
[336010524,1724669440034,-40872.05780667,0.00010399,6]
[336010525,1724669440044,-5285.89360286,0.00010399,6]
[336010526,1724669440056,-570.47568903,0.00010399,6]
[336010527,1724669440080,-3968.06412907,0.00010399,6]
[336010534,1724669440191,-56888.10657904,0.00010399,6]
[336010536,1724669440201,-61739.6,0.000104,6]
[336010537,1724669440211,-263.3,0.000104,2]
[336010538,1724669440223,-1700.0,0.000104,3]
[336010539,1724669440233,-1051.84018982,0.00010469,2]
[336010540,1724669440242,-567.54,0.00010469,2]
[336010541,1724669440252,-4794.7924,0.00010471,2]
[336010542,1724669440262,-155.0,0.00010471,2]
[336010543,1724669440271,-2600.0,0.000105,3]
[336010544,1724669440281,-150.0,0.000105,2]
[336010545,1724669440291,-300.0,0.00010504,2]
[336010546,1724669440300,-299.99,0.00010525,2]
[336010547,1724669440309,-457.79957147,0.00010566,2]
[336010548,1724669440319,-217.47,0.00010578,2]
[336010549,1724669440328,-3500.0,0.000106,3]
[336010550,1724669440338,-499.99,0.000106,2]
[336010551,1724669440348,-317.16165236,0.00010699,2]
[336010552,1724669440357,-4400.0,0.000107,3]
[336010558,1724669440521,-317.16165236,0.00010713,2]
[336010560,1724669440532,-155.0,0.00010713,2]
[336010562,1724669440542,-150.0,0.00010732,2]
[336010564,1724669440552,-150.0,0.00010783,2]
[336010566,1724669440561,-2357.89277135,0.00010797,2]
[336010568,1724669440572,-260.2733,0.00010799,2]
[336010570,1724669440582,-2500.0,0.00010799,2]
[336010572,1724669440591,-289.9408,0.000108,2]
[336010574,1724669440601,-401.85092769,0.000108,2]
[336010576,1724669440610,-800.0,0.000108,3]
[336010578,1724669440620,-150.0,0.00010801,2]
[336010580,1724669440630,-150.0,0.00010825,2]
[336010582,1724669440639,-150.0,0.00010825,2]
[336010584,1724669440649,-150.0,0.00010854,2]
[336010586,1724669440659,-150.0,0.00010854,2]
[336010588,1724669440668,-326.95805333,0.00010858,2]
[336010590,1724669440677,-3747.38,0.00010862,2]
[336010592,1724669440687,-150.0,0.00010871,2]
[336010594,1724669440697,-326.9580533,0.00010872,2]
[336010596,1724669440706,-12207.5368,0.00010879,2]
[336010598,1724669440716,-326.9580533,0.00010886,2]
[336010600,1724669440725,-9965.59394484,0.0001089,2]
[336010602,1724669440735,-1259.11141879,0.0001089,2]
[336010604,1724669440745,-1117.4595,0.00010897,2]
[336010606,1724669440754,-1136.52653892,0.00010898,3]
[336010608,1724669440763,-523.49898254,0.00010898,2]
[336010609,1724669440773,-523.49898254,0.00010899,2]
[336010611,1724669440782,-27107.2203,0.00010899,2]
[336010613,1724669440792,-2326.8697,0.00010899,2]
[336010615,1724669440801,-167.7305538,0.00010899,2]
[336010617,1724669440811,-19474.69567428,0.00010899,2]
[336010619,1724669440820,-19474.69567423,0.00010899,2]
[336010621,1724669440830,-19474.69567423,0.00010899,2]
[336010623,1724669440839,-19474.69567423,0.00010899,2]
[336010625,1724669440849,-19474.69567423,0.00010899,2]
[336010627,1724669440859,-19474.69567423,0.00010899,2]
[336010628,1724669440868,-19474.69567423,0.00010899,2]
[336010629,1724669440878,-19474.69567423,0.00010899,2]
[336010630,1724669440887,-19474.69567423,0.00010899,2]
[336010631,1724669440897,-295.96857258,0.00010899,2]
[336010632,1724669440906,-523.49898254,0.00010899,2]
[336010633,1724669440915,-19474.69567423,0.000109,2]
[336010634,1724669440925,-800.0,0.000109,3]
[336010635,1724669440935,-326.9580533,0.000109,2]
[336010636,1724669440944,-1462.0,0.000109,2]
[336010637,1724669440954,-150.0,0.00010902,2]
[336010638,1724669440965,-150.0,0.0001091,2]
[336010639,1724669440974,-500.0,0.00010912,2]
[336010640,1724669440984,-150.0,0.00010924,2]
[336010641,1724669440993,-150.0,0.00010937,2]
[336010642,1724669441003,-150.0,0.00010939,2]
[336010643,1724669441013,-3000.0,0.0001094,2]
[336010644,1724669441023,-523.5801868,0.00010949,2]
[336010645,1724669441033,-150.0,0.0001095,2]
[336010646,1724669441043,-150.0,0.0001095,2]
[336010647,1724669441052,-150.0,0.0001095,2]
[336010648,1724669441062,-150.0,0.00010957,2]
[336010649,1724669441072,-510.39355958,0.00010958,2]
[336010650,1724669441081,-237.57546559,0.00010958,2]
[336010651,1724669441091,-481.80479649,0.00010958,2]
[336010652,1724669441100,-510.25019722,0.00010958,2]
[336010653,1724669441110,-500.0,0.00010958,2]
[336010655,1724669441119,-508.42337092,0.00010958,2]
[336010657,1724669441129,-500.0,0.00010958,2]
[336010659,1724669441139,-499.4253677,0.00010958,2]
[336010660,1724669441151,-500.0,0.00010958,2]
[336010662,1724669441161,-500.0,0.00010958,2]
[336010664,1724669441170,-500.0,0.00010958,2]
[336010666,1724669441181,-506.01969043,0.00010958,2]
[336010668,1724669441191,-539.71318537,0.00010958,2]
[336010670,1724669441200,-500.0,0.00010958,2]
[336010672,1724669441210,-500.0,0.00010958,2]
[336010674,1724669441220,-500.0,0.00010958,2]
[336010676,1724669441230,-500.0,0.00010958,2]
[336010678,1724669441239,-981.53,0.00010958,2]
[336010680,1724669441249,-500.0,0.00010958,2]
[336010682,1724669441258,-500.0,0.00010958,2]
[336010684,1724669441268,-506.14647997,0.00010958,2]
[336010686,1724669441277,-509.71842104,0.00010958,2]
[336010688,1724669441286,-507.47579398,0.00010958,2]
[336010690,1724669441296,-500.0,0.00010958,2]
[336010692,1724669441305,-500.0,0.00010958,2]
[336010693,1724669441315,-372.33421125,0.00010958,2]
[336010694,1724669441324,-503.60474401,0.00010958,2]
[336010695,1724669441333,-500.0,0.00010958,2]
[336010696,1724669441343,-500.0,0.00010958,2]
[336010697,1724669441352,-500.0,0.00010958,2]
[336010698,1724669441361,-501.51044002,0.00010958,2]
[336010699,1724669441371,-500.0,0.00010958,2]
[336010700,1724669441381,-506.53034679,0.00010958,2]
[336010701,1724669441390,-506.43863809,0.00010958,2]
[336010702,1724669441399,-500.0,0.00010958,2]
[336010704,1724669441408,-500.0,0.00010958,2]
[336010706,1724669441418,-500.0,0.00010958,2]
[336010707,1724669441427,-500.0,0.00010958,2]
[336010708,1724669441437,-500.0,0.00010958,2]
[336010709,1724669441446,-500.0,0.00010958,2]
[336010710,1724669441456,-536.05479589,0.00010958,2]
[336010711,1724669441466,-500.0,0.00010958,2]
[336010712,1724669441475,-512.94813292,0.00010958,2]
[336010713,1724669441484,-500.0,0.00010958,2]
[336010714,1724669441494,-500.0,0.00010958,2]
[336010715,1724669441503,-500.0,0.00010958,2]
[336010716,1724669441513,-515.22848622,0.00010958,2]
[336010717,1724669441522,-501.32449692,0.00010958,2]
[336010718,1724669441532,-511.05158362,0.00010958,2]
[336010719,1724669441541,-500.0,0.00010958,2]
[336010720,1724669441551,-500.0,0.00010958,2]
[336010721,1724669441560,-500.0,0.00010958,2]
[336010722,1724669441569,-500.0,0.00010958,2]
[336010723,1724669441579,-500.0,0.00010958,2]
[336010724,1724669441588,-506.66411104,0.00010958,2]
[336010725,1724669441598,-500.0,0.00010958,2]
[336010726,1724669441607,-500.0,0.00010958,2]
[336010728,1724669441616,-500.0,0.00010958,2]
[336010730,1724669441625,-507.13301706,0.00010958,2]
[336010732,1724669441635,-500.0,0.00010958,2]
[336010733,1724669441644,-509.81780264,0.00010958,2]
[336010734,1724669441653,-500.0,0.00010958,2]
[336010735,1724669441662,-500.0,0.00010958,2]
[336010736,1724669441671,-500.0,0.00010958,2]
[336010737,1724669441681,-500.0,0.00010958,2]
[336010738,1724669441689,-500.0,0.00010958,2]
[336010739,1724669441699,-511.98695113,0.00010958,2]
[336010740,1724669441708,-500.0,0.00010958,2]
[336010741,1724669441719,-500.0,0.00010958,2]
[336010742,1724669441728,-500.0,0.00010958,2]
[336010743,1724669441738,-311.59679611,0.00010958,2]
[336010744,1724669441747,-389.13358134,0.00010958,2]
[336010745,1724669441756,-504.75390698,0.00010958,2]
[336010746,1724669441766,-500.0,0.00010958,2]
[336010747,1724669441775,-500.0,0.00010958,2]
[336010748,1724669441786,-500.0,0.00010958,2]
[336010749,1724669441796,-500.0,0.00010958,2]
[336010750,1724669441805,-500.0,0.00010958,2]
[336010751,1724669441814,-969.41,0.00010958,2]
[336010752,1724669441824,-500.0,0.00010958,2]
[336010753,1724669441833,-500.0,0.00010958,2]
[336010754,1724669441842,-500.0,0.00010958,2]
[336010755,1724669441851,-501.74696903,0.00010958,2]
[336010756,1724669441860,-500.0,0.00010958,2]
[336010757,1724669441870,-500.0,0.00010958,2]
[336010758,1724669441879,-500.0,0.00010958,2]
[336010759,1724669441889,-182.40418157,0.00010958,2]
[336010760,1724669441898,-500.0,0.00010958,2]
[336010761,1724669441909,-360.58195802,0.00010958,2]
[336010762,1724669441918,-500.0,0.00010958,2]
[336010763,1724669441928,-508.66735919,0.00010958,2]
[336010764,1724669441937,-508.41341901,0.00010958,2]
[336010765,1724669441947,-578.83110405,0.00010958,2]
[336010766,1724669441956,-500.0,0.00010958,2]
[336010767,1724669441967,-882.6,0.00010958,2]
[336010768,1724669441976,-862.59,0.00010958,2]
[336010769,1724669441986,-511.69143864,0.00010958,2]
[336010770,1724669441995,-609.15,0.00010958,2]
[336010771,1724669442005,-209.48522824,0.00010958,2]
[336010772,1724669442015,-688.4,0.00010958,2]
[336010773,1724669442025,-500.0,0.00010958,2]
[336010774,1724669442034,-521.41060666,0.00010958,2]
[336010775,1724669442043,-500.0,0.00010958,2]
[336010776,1724669442052,-1011.13,0.00010958,2]
[336010777,1724669442062,-500.0,0.00010958,2]
[336010778,1724669442071,-500.0,0.00010958,2]
[336010779,1724669442080,-500.0,0.00010958,2]
[336010780,1724669442089,-500.0,0.00010958,2]
[336010781,1724669442100,-500.0,0.00010958,2]
[336010782,1724669442110,-500.0,0.00010958,2]
[336010783,1724669442120,-510.6636596,0.00010958,2]
[336010784,1724669442129,-506.10271541,0.00010958,2]
[336010785,1724669442142,-2964.13,0.00010958,2]
[336010786,1724669442152,-500.0,0.00010958,2]
[336010787,1724669442162,-348.861001,0.00010958,2]
[336010788,1724669442171,-492.97993704,0.00010958,2]
[336010789,1724669442183,-516.28485549,0.00010958,2]
[336010790,1724669442310,-699.23,0.00010958,2]
[336010791,1724669442320,-183.70647,0.00010958,2]
[336010792,1724669442330,-495.46380671,0.00010958,2]
[336010793,1724669442340,-9470.421101,0.00010958,2]
[336010794,1724669442349,-524.64568243,0.00010958,2]
[336010795,1724669442359,-12039.817205,0.00010958,2]
[336010796,1724669442368,-707.46,0.00010958,2]
[336010797,1724669442378,-500.0,0.00010958,2]
[336010798,1724669442387,-1043.67,0.00010958,2]
[336010799,1724669442396,-1736.902809,0.00010958,2]
[336010800,1724669442406,-500.7648223,0.00010958,2]
[336010801,1724669442415,-1307.38,0.00010958,2]
[336010802,1724669442425,-188.06386047,0.00010958,2]
[336010803,1724669442435,-507.75267731,0.00010958,2]
[336010804,1724669442444,-500.0,0.00010958,2]
[336010805,1724669442453,-500.0,0.00010958,2]
[336010806,1724669442463,-2644.27,0.00010958,2]
[336010807,1724669442473,-500.0,0.00010958,2]
[336010809,1724669442483,-902.94,0.00010958,2]
[336010810,1724669442494,-500.0,0.00010958,2]
[336010811,1724669442503,-500.0,0.00010958,2]
[336010812,1724669442513,-500.0,0.00010958,2]
[336010813,1724669442523,-500.0,0.00010958,2]
[336010814,1724669442533,-500.0,0.00010958,2]
[336010815,1724669442543,-341.29426734,0.00010958,2]
[336010817,1724669442552,-500.0,0.00010958,2]
[336010819,1724669442562,-1886.69,0.00010958,2]
[336010821,1724669442572,-500.0,0.00010958,2]
[336010824,1724669442581,-500.0,0.00010958,2]
[336010826,1724669442591,-511.92322405,0.00010958,2]
[336010827,1724669442601,-757.14,0.00010958,2]
[336010828,1724669442610,-500.0,0.00010958,2]
[336010829,1724669442620,-500.0,0.00010958,2]
[336010830,1724669442629,-1506.72,0.00010958,2]
[336010831,1724669442640,-498.58316104,0.00010958,2]
[336010832,1724669442649,-952.21,0.00010958,2]
[336010833,1724669442658,-500.0,0.00010958,2]
[336010834,1724669442668,-500.0,0.00010958,2]
[336010835,1724669442678,-500.0,0.00010958,2]
[336010836,1724669442687,-822.98,0.00010958,2]
[336010837,1724669442697,-691.66,0.00010958,2]
[336010838,1724669442707,-3481.35,0.00010958,2]
[336010839,1724669442718,-518.41,0.00010958,2]
[336010840,1724669442727,-535.08,0.00010958,2]
[336010841,1724669442737,-922.65,0.00010958,2]
[336010842,1724669442746,-1103.5,0.00010958,2]
[336010845,1724669442756,-500.0,0.00010958,2]
[336010847,1724669442766,-981.29,0.00010958,2]
[336010849,1724669442775,-1488.26,0.00010958,2]
[336010850,1724669442784,-500.0,0.00010958,2]
[336010851,1724669442794,-2251.23,0.00010958,2]
[336010852,1724669442803,-500.0,0.00010958,2]
[336010853,1724669442813,-1306.21,0.00010958,2]
[336010854,1724669442823,-777.31,0.00010958,2]
[336010855,1724669442833,-706.24,0.00010958,2]
[336010856,1724669442842,-509.22925867,0.00010958,2]
[336010857,1724669442853,-500.0,0.00010958,2]
[336010859,1724669442864,-500.0,0.00010958,2]
[336010861,1724669442874,-500.0,0.00010958,2]
[336010862,1724669442884,-809.53,0.00010958,2]
[336010863,1724669442895,-524.19573848,0.00010958,2]
[336010864,1724669442905,-4413.44,0.00010958,2]
[336010865,1724669442915,-500.0,0.00010958,2]
[336010866,1724669442926,-500.0,0.00010958,2]
[336010867,1724669442938,-514.24570833,0.00010958,2]
[336010868,1724669442949,-498.87681583,0.00010958,2]
[336010869,1724669442959,-1136.63,0.00010958,2]
[336010870,1724669442976,-500.0,0.00010958,2]
[336010871,1724669442988,-2028.9,0.00010958,2]
[336010872,1724669442999,-500.0,0.00010958,2]
[336010873,1724669443010,-500.0,0.00010958,2]
[336010874,1724669443020,-546.05,0.00010958,2]
[336010875,1724669443031,-500.0,0.00010958,2]
[336010876,1724669443041,-500.0,0.00010958,2]
[336010877,1724669443051,-500.0,0.00010958,2]
[336010878,1724669443061,-746.81,0.00010958,2]
[336010879,1724669443073,-500.0,0.00010958,2]
[336010880,1724669443084,-660.8,0.00010958,2]
[336010881,1724669443095,-500.0,0.00010958,2]
[336010882,1724669443107,-500.0,0.00010958,2]
[336010883,1724669443127,-1293.44,0.00010958,2]
[336010884,1724669443151,-500.0,0.00010958,2]
[336010885,1724669443172,-2553.77,0.00010958,2]
[336010886,1724669443195,-500.0,0.00010958,2]
[336010887,1724669443221,-500.0,0.00010958,2]
[336010888,1724669443243,-500.0,0.00010958,2]
[336010889,1724669443262,-679.09,0.00010958,2]
[336010890,1724669443279,-935.47,0.00010958,2]
[336010891,1724669443299,-500.0,0.00010958,2]
[336010893,1724669443321,-949.17,0.00010958,2]
[336010894,1724669443336,-500.0,0.00010958,2]
[336010895,1724669443354,-500.0,0.00010958,2]
[336010896,1724669443370,-517.66914615,0.00010958,2]
[336010898,1724669443389,-408.25633375,0.00010958,2]
[336010901,1724669443402,-500.0,0.00010958,2]
[336010903,1724669443417,-157.41,0.00010959,2]
[336010906,1724669443432,-1000.0,0.00010959,2]
[336010908,1724669443446,-1000.0,0.00010959,2]
[336010911,1724669443467,-1000.0,0.00010959,2]
[336010912,1724669443482,-1000.0,0.00010959,2]
[336010913,1724669443497,-1000.0,0.00010959,2]
[336010914,1724669443512,-1000.0,0.00010959,2]
[336010915,1724669443527,-1000.0,0.00010959,2]
[336010916,1724669443542,-1000.0,0.00010959,2]
[336010917,1724669443556,-1000.0,0.00010959,2]
[336010918,1724669443571,-1000.0,0.00010959,2]
[336010919,1724669443585,-1000.0,0.00010959,2]
[336010920,1724669443600,-1000.0,0.00010959,2]
[336010921,1724669443615,-1000.0,0.00010959,2]
[336010922,1724669443631,-1000.0,0.00010959,2]
[336010923,1724669443646,-1000.0,0.00010959,2]
[336010924,1724669443661,-1000.0,0.00010959,2]
[336010925,1724669443676,-1000.0,0.00010959,2]
[336010926,1724669443692,-621.0,0.00010959,2]
[336010927,1724669443707,-159.47,0.00010959,2]
[336010928,1724669443724,-500.0,0.0001096,2]
[336010929,1724669443738,-500.0,0.0001096,2]
[336010930,1724669443754,-600.0,0.0001096,2]
[336010931,1724669443769,-700.0,0.0001096,2]
[336010932,1724669443784,-160.922,0.0001096,2]
[336010933,1724669443799,-150.0,0.00010972,2]
[336010934,1724669443814,-500.0,0.00010987,2]
[336010935,1724669443830,-949.17,0.00010987,2]
[336010936,1724669443845,-1500.0,0.00010988,2]
[336010937,1724669443860,-757.14,0.00010988,2]
[336010938,1724669443876,-952.21,0.00010988,2]
[336010939,1724669443891,-691.66,0.00010988,2]
[336010941,1724669443907,-1103.5,0.00010988,2]
[336010942,1724669443922,-1488.26,0.00010988,2]
[336010943,1724669443937,-1306.21,0.00010988,2]
[336010945,1724669443953,-500.0,0.00010988,2]
[336010946,1724669443972,-4413.44,0.00010988,2]
[336010947,1724669443987,-546.05,0.00010988,2]
[336010948,1724669444002,-500.0,0.00010988,2]
[336010949,1724669444017,-1293.44,0.00010988,2]
[336010950,1724669444032,-935.47,0.00010988,2]
[336010951,1724669444047,-500.0,0.00010989,2]
[336010952,1724669444063,-500.0,0.00010989,2]
[336010953,1724669444078,-801.14,0.00010989,2]
[336010954,1724669444093,-553.53,0.00010989,2]
[336010955,1724669444109,-1067.49,0.00010989,2]
[336010956,1724669444124,-500.0,0.00010989,2]
[336010957,1724669444140,-500.0,0.00010989,2]
[336010958,1724669444157,-527.83568236,0.00010989,2]
[336010959,1724669444173,-500.0,0.00010989,2]
[336010960,1724669444189,-500.0,0.00010989,2]
[336010961,1724669444204,-500.0,0.00010989,2]
[336010962,1724669444223,-500.0,0.00010989,2]
[336010963,1724669444239,-500.0,0.00010989,2]
[336010964,1724669444254,-501.02,0.00010989,2]
[336010965,1724669444269,-500.0,0.00010989,2]
[336010966,1724669444284,-744.49,0.00010989,2]
[336010967,1724669444299,-500.0,0.00010989,2]
[336010968,1724669444314,-500.0,0.00010989,2]
[336010969,1724669444329,-500.0,0.00010989,2]
[336010970,1724669444344,-500.0,0.00010989,2]
[336010971,1724669444359,-1114.22,0.00010989,2]
[336010972,1724669444373,-1211.52,0.00010989,2]
[336010973,1724669444388,-500.0,0.00010989,2]
[336010974,1724669444403,-506.01196392,0.00010989,2]
[336010975,1724669444418,-500.0,0.00010989,2]
[336010976,1724669444594,-500.0,0.00010989,2]
[336010977,1724669444612,-828.84,0.00010989,2]
[336010978,1724669444622,-500.0,0.00010989,2]
[336010979,1724669444631,-500.0,0.00010989,2]
[336010980,1724669444640,-791.42,0.00010989,2]
[336010981,1724669444650,-500.0,0.00010989,2]
[336010982,1724669444659,-500.0,0.00010989,2]
[336010983,1724669444668,-3188.75,0.00010989,2]
[336010984,1724669444677,-500.0,0.00010989,2]
[336010985,1724669444687,-500.0,0.00010989,2]
[336010986,1724669444696,-500.0,0.00010989,2]
[336010987,1724669444706,-1240.62,0.00010989,2]
[336010988,1724669444716,-569.29,0.00010989,2]
[336010989,1724669444726,-500.0,0.00010989,2]
[336010990,1724669444735,-2901.87,0.00010989,2]
[336010991,1724669444745,-633.83,0.00010989,2]
[336010992,1724669444755,-2520.76,0.00010989,2]
[336010993,1724669444764,-1128.51,0.00010989,2]
[336010994,1724669444774,-500.0,0.00010989,2]
[336010995,1724669444783,-2239.23,0.00010989,2]
[336010996,1724669444792,-576.71,0.00010989,2]
[336010997,1724669444802,-622.34,0.00010989,2]
[336010998,1724669444811,-634.21,0.00010989,2]
[336010999,1724669444820,-1029.85,0.00010989,2]
[336011000,1724669444830,-780.08,0.00010989,2]
[336011001,1724669444839,-653.66,0.00010989,2]
[336011002,1724669444848,-500.0,0.00010989,2]
[336011003,1724669444858,-1341.53,0.00010989,2]
[336011004,1724669444867,-976.21,0.00010989,2]
[336011005,1724669444876,-500.0,0.00010989,2]
[336011006,1724669444885,-510.53,0.00010989,2]
[336011007,1724669444895,-790.59,0.00010989,2]
[336011008,1724669444904,-505.22209104,0.00010989,2]
[336011009,1724669444913,-500.0,0.00010989,2]
[336011010,1724669444923,-1591.19,0.00010989,2]
[336011011,1724669444932,-500.0,0.00010989,2]
[336011012,1724669444942,-580.9,0.00010989,2]
[336011013,1724669444951,-510.39,0.00010989,2]
[336011014,1724669444960,-979.86,0.00010989,2]
[336011015,1724669444971,-1135.62,0.00010989,2]
[336011016,1724669444980,-500.0,0.00010989,2]
[336011017,1724669444989,-2069.17,0.00010989,2]
[336011018,1724669444998,-809.56,0.00010989,2]
[336011019,1724669445008,-2031.15,0.00010989,2]
[336011020,1724669445017,-500.0,0.00010989,2]
[336011021,1724669445026,-854.6,0.00010989,2]
[336011022,1724669445035,-611.07,0.00010989,2]
[336011023,1724669445045,-500.0,0.00010989,2]
[336011024,1724669445054,-3243.53,0.00010989,2]
[336011025,1724669445064,-500.0,0.00010989,2]
[336011026,1724669445073,-840.27,0.00010989,2]
[336011027,1724669445082,-500.0,0.00010989,2]
[336011028,1724669445092,-639.71,0.00010989,2]
[336011029,1724669445101,-1947.16,0.00010989,2]
[336011030,1724669445111,-500.0,0.00010989,2]
[336011031,1724669445121,-675.34,0.00010989,2]
[336011032,1724669445131,-1042.16,0.00010989,2]
[336011033,1724669445144,-1194.4,0.00010989,2]
[336011034,1724669445156,-500.0,0.00010989,2]
[336011035,1724669445165,-500.0,0.00010989,2]
[336011036,1724669445175,-1032.75,0.00010989,2]
[336011037,1724669445185,-500.0,0.00010989,2]
[336011038,1724669445195,-1079.71,0.00010989,2]
[336011039,1724669445205,-858.07,0.00010989,2]
[336011040,1724669445215,-500.0,0.00010989,2]
[336011041,1724669445237,-500.0,0.00010989,2]
[336011042,1724669445247,-500.0,0.00010989,2]
[336011043,1724669445257,-500.0,0.00010989,2]
[336011044,1724669445266,-1767.53,0.00010989,2]
[336011045,1724669445276,-500.0,0.00010989,2]
[336011046,1724669445285,-500.0,0.00010989,2]
[336011047,1724669445294,-500.0,0.00010989,2]
[336011048,1724669445304,-500.0,0.00010989,2]
[336011049,1724669445313,-500.0,0.00010989,2]
[336011050,1724669445322,-1727.33,0.00010989,2]
[336011051,1724669445333,-500.0,0.00010989,2]
[336011052,1724669445342,-500.0,0.00010989,2]
[336011053,1724669445352,-500.0,0.00010989,2]
[336011054,1724669445362,-507.38753989,0.00010989,2]
[336011055,1724669445371,-500.0,0.00010989,2]
[336011056,1724669445382,-500.0,0.00010989,2]
[336011057,1724669445391,-1041.02,0.00010989,2]
[336011058,1724669445401,-500.0,0.00010989,2]
[336011059,1724669445415,-500.0,0.00010989,2]
[336011060,1724669445424,-500.0,0.00010989,2]
[336011061,1724669445434,-500.0,0.00010989,2]
[336011062,1724669445444,-1532.79,0.00010989,2]
[336011063,1724669445453,-500.0,0.00010989,2]
[336011064,1724669445463,-457.49061467,0.00010989,2]
[336011065,1724669445475,-500.0,0.00010989,2]
[336011067,1724669445485,-500.0,0.00010989,2]
[336011068,1724669445495,-500.0,0.00010989,2]
[336011069,1724669445504,-589.26326934,0.00010989,2]
[336011070,1724669445514,-571.02,0.00010989,2]
[336011071,1724669445525,-500.0,0.00010989,2]
[336011072,1724669445535,-504.70901039,0.00010989,2]
[336011073,1724669445544,-500.0,0.00010989,2]
[336011074,1724669445554,-503.98020239,0.00010989,2]
[336011075,1724669445564,-500.0,0.00010989,2]